bitfinex/quotes_SOLUSD_20250915
["timestamp","ask_amount","ask_price","bid_price","bid_amount"]
[1757946888017,29.02145847,234.92,234.91,0.1]
[1757946890041,34.33350406,234.92,234.91,0.1]
[1757946890617,33.63350406,234.92,234.91,0.1]
[1757946890816,34.33350406,234.92,234.91,0.1]
[1757946891004,26.0,234.88,234.81,0.78]
[1757946891215,33.30316916,234.83,234.81,0.78]
[1757946891410,29.04472813,234.83,234.82,0.68]
[1757946891609,26.0,234.83,234.82,0.68]
[1757946892009,29.04472813,234.83,234.82,0.68]
[1757946892214,39.59559401,234.82,234.81,0.1]
[1757946892830,39.59559401,234.82,234.81,0.82]
[1757946893226,81.28890318,234.82,234.81,0.1]
[1757946893514,85.89094876,234.82,234.81,0.1]
[1757946894129,82.84622063,234.82,234.81,0.1]
[1757946894317,83.55622063,234.82,234.81,0.1]
[1757946894519,86.60094876,234.82,234.81,0.1]
[1757946894739,89.97783077,234.82,234.81,0.1]
[1757946895140,86.60094876,234.82,234.81,0.1]
[1757946895443,90.49363876,234.82,234.81,1e-08]
[1757946895642,39.59559401,234.78,234.77,0.1]
[1757946895859,73.27559401,234.78,234.77,0.1]
[1757946896021,76.32032214,234.78,234.77,0.1]
[1757946897033,78.02895716,234.78,234.77,0.1]
[1757946897233,44.34895716,234.78,234.77,0.1]
[1757946897418,79.24353561,234.78,234.77,0.82]
[1757946897624,82.28826374,234.78,234.77,0.1]
[1757946898219,82.99826374,234.78,234.77,0.1]
[1757946898417,88.31030932,234.78,234.77,0.1]
[1757946899317,87.60030932,234.78,234.77,0.1]
[1757946899521,53.92030932,234.78,234.77,0.1]
[1757946899840,49.66100274,234.78,234.77,0.1]
[1757946900035,87.60030932,234.78,234.77,0.1]
[1757946900551,53.92030932,234.78,234.77,0.1]
[1757946900730,44.34895716,234.78,234.77,0.82]
[1757946900917,48.98422903,234.78,234.77,0.82]
[1757946901121,15.30422903,234.78,234.77,0.82]
[1757946901318,48.98422903,234.78,234.77,0.82]
[1757946901518,56.28826374,234.78,234.77,0.82]
[1757946901744,1.70863502,234.78,234.77,0.82]
[1757946901937,20.0,234.95,234.77,8.12421613]
[1757946902250,3.04472813,234.88,234.78,0.67]
[1757946902420,36.80472813,234.87,234.82,3.04472813]
[1757946902748,13.59559401,234.86,234.83,0.67]
[1757946902926,13.59559401,234.86,234.84,0.67]
[1757946903124,13.59559401,234.86,234.81,3.04472813]
[1757946903323,13.59559401,234.86,234.81,7.3034804]
[1757946903627,26.0,234.81,234.77,7.40417049]
[1757946903827,132.5,234.8,234.78,3.04472813]
[1757946904253,132.5,234.8,234.79,0.67]
[1757946904541,33.7,234.83,234.79,3.71472813]
[1757946904849,132.5,234.89,234.82,3.04472813]
[1757946905147,4.35944236,234.86,234.85,3.04472813]
[1757946905334,30.35944236,234.86,234.85,7.97276517]
[1757946905525,26.0,234.86,234.85,7.97276517]
[1757946905719,166.2,234.89,234.85,4.92803704]
[1757946905923,26.0,234.86,234.85,4.92803704]
[1757946906124,26.0,234.86,234.85,4.25803704]
[1757946906729,26.0,234.86,234.85,4.92803704]
[1757946907027,26.0,234.86,234.85,7.97276517]
[1757946907428,12.80491708,234.93,234.85,18.61785778]
[1757946907631,13.59559401,234.95,234.89,3.04472813]
[1757946907847,33.68,234.94,234.9,3.71472813]
[1757946908052,46.48382408,234.96,234.91,3.71472813]
[1757946908239,13.59559401,234.98,234.92,0.67]
[1757946908558,0.1,234.99,234.96,3.04472813]
[1757946908727,26.0,234.97,234.94,0.67]
[1757946908927,26.0,234.97,234.92,0.67]
[1757946909140,47.27559401,234.98,234.93,0.67]
[1757946909351,26.0,234.95,234.94,0.67]
[1757946909550,26.0,234.95,234.88,10.64349923]
[1757946909862,26.0,234.95,234.91,7.01053802]
[1757946910027,26.0,234.91,234.89,0.67]
[1757946910432,26.0,234.91,234.9,0.67]
[1757946911474,26.0,234.91,234.87,7.68053802]
[1757946911751,26.0,234.91,234.88,0.67]
[1757946912156,0.1,234.99,234.9,7.01053802]
[1757946912361,0.1,234.99,234.94,7.01053802]
[1757946912547,0.1,234.99,234.95,7.01053802]
[1757946912548,26.0,234.98,234.95,7.01053802]
[1757946912862,26.0,234.98,234.96,0.67]
[1757946913155,26.0,234.98,234.94,7.01053802]
[1757946913458,26.0,234.98,234.94,7.68053802]
[1757946913632,26.0,234.98,234.95,0.67]
[1757946914135,26.0,234.98,234.96,0.67]
[1757946914537,26.0,234.98,234.94,11.93689622]
[1757946914835,26.0,234.98,234.95,0.67]
[1757946915237,26.0,234.98,234.94,11.26689622]
[1757946915536,26.0,234.98,234.83,93.60665616]
[1757946915537,26.0,234.98,234.93,7.01053802]
[1757946915834,26.0,234.98,234.83,59.92665616]
[1757946915835,26.0,234.92,234.89,0.67]
[1757946916041,26.0,234.91,234.89,0.67]
[1757946916242,33.68,234.97,234.9,0.67]
[1757946916443,26.0,234.95,234.9,0.67]
[1757946916661,26.0,234.94,234.9,0.67]
[1757946917032,13.59559401,234.98,234.9,0.67]
[1757946917238,26.0,234.95,234.9,0.67]
[1757946917545,33.78,234.99,234.91,14.89932314]
[1757946917730,59.78,234.99,234.92,0.67]
[1757946917928,26.1,234.99,234.97,7.01053802]
[1757946918375,26.1,234.99,234.97,7.68053802]
[1757946918952,26.1,234.99,234.98,0.67]
[1757946919157,26.1,234.99,234.97,7.01053802]
[1757946919452,26.0,234.97,234.96,11.2665816]
[1757946919647,26.0,234.97,234.96,11.9365816]
[1757946921858,26.0,234.98,234.96,11.9365816]
[1757946922062,26.0,234.98,234.97,7.68053802]
[1757946922264,0.1,234.99,234.97,7.68053802]
[1757946922444,0.1,234.99,234.98,7.68053802]
[1757946922849,0.13,234.99,234.98,7.68053802]
[1757946923562,0.13,234.99,234.98,4.92568133]
[1757946923863,0.13,234.99,234.98,11.93621935]
[1757946924236,0.13,234.99,234.98,4.92568133]
[1757946924656,26.0,234.98,234.94,7.01053802]
[1757946925262,26.0,234.97,234.95,7.01053802]
[1757946925445,0.13,234.99,234.96,7.68053802]
[1757946925755,0.13,234.99,234.97,4.74026813]
[1757946925756,26.0,234.98,234.97,4.74026813]
[1757946925940,26.0,234.98,234.96,5.41026813]
[1757946926748,26.0,234.98,234.96,9.66628047]
[1757946926943,26.0,234.98,234.96,8.99628047]
[1757946927145,0.13,234.99,234.97,5.41026813]
[1757946927348,26.13,234.99,234.98,4.74026813]
[1757946927659,26.13,234.99,234.98,9.66594946]
[1757946927858,0.13,234.99,234.98,9.66594946]
[1757946929258,0.13,234.99,234.98,4.92568133]
[1757946929462,0.13,234.99,234.98,9.66594946]
[1757946929765,0.13,234.99,234.98,6.87543986]
[1757946930265,1e-08,234.99,234.98,6.87543986]
[1757946932742,0.03,235.02,235.01,1.94975853]
[1757946932942,0.1,235.09,235.08,1.94975853]
[1757946933150,0.1,235.09,235.08,2.66975853]
[1757946933645,132.5,235.18,235.08,10.46879265]
[1757946933847,132.5,235.18,235.1,1.94975853]
[1757946934055,132.5,235.18,235.1,6.20326767]
[1757946934258,132.5,235.18,235.1,6.92326767]
[1757946934958,0.1,235.19,235.1,30.53962321]
[1757946935271,26.1,235.19,235.11,0.72]
[1757946935570,26.78,235.19,235.16,1.94975853]
[1757946935759,0.68,235.18,235.16,4.73270346]
[1757946935950,26.1,235.19,235.16,4.73270346]
[1757946936151,26.1,235.19,235.17,4.73270346]
[1757946936348,26.78,235.19,235.17,4.73270346]
[1757946936549,26.78,235.19,235.16,4.73270346]
[1757946936750,0.68,235.18,235.15,4.73270346]
[1757946936972,26.1,235.19,235.16,4.73270346]
[1757946937146,26.78,235.19,235.16,4.73270346]
[1757946937466,0.68,235.18,235.16,4.73270346]
[1757946937673,26.0,235.17,235.15,4.73270346]
[1757946937860,0.68,235.16,235.11,8.98596974]
[1757946938063,0.68,235.15,235.07,0.72]
[1757946938352,26.0,235.12,235.07,4.73270346]
[1757946938563,0.68,235.11,235.07,4.73270346]
[1757946938867,0.68,235.13,235.07,4.73270346]
[1757946939072,0.68,235.13,235.08,4.73270346]
[1757946939874,4.25278557,235.14,235.08,4.73270346]
[1757946940052,0.68,235.12,235.07,4.73270346]
[1757946940460,19.00829747,235.14,235.07,5.45270346]
[1757946940894,19.00829747,235.14,235.07,4.73270346]
[1757946941372,19.00829747,235.14,235.07,8.98674395]
[1757946941579,26.0,235.1,235.02,10.6373399]
[1757946941777,13.59559401,235.09,234.99,10.63853397]
[1757946941953,26.0,235.06,235.02,4.73270346]
[1757946942158,26.0,235.06,235.04,4.73270346]
[1757946942367,26.0,235.06,235.03,4.73270346]
[1757946943156,26.68,235.05,234.99,4.25534457]
[1757946943468,0.68,235.05,235.0,4.73270346]
[1757946943974,26.0,235.06,235.02,4.73270346]
[1757946944166,26.0,235.05,235.01,8.98774345]
[1757946945381,26.0,235.05,235.01,4.25503999]
[1757946945559,26.0,235.05,235.01,8.98774345]
[1757946945971,26.68,235.05,235.01,4.25503999]
[1757946946377,26.68,235.05,234.98,4.79270346]
[1757946946378,0.68,235.04,234.98,4.79270346]
[1757946946575,26.0,235.02,234.98,0.06]
[1757946946783,26.0,235.02,234.99,4.73270346]
[1757946946980,26.0,235.03,234.99,0.72]
[1757946947281,26.0,235.02,235.0,4.73270346]
[1757946948274,26.0,235.02,235.01,4.25513807]
[1757946949081,26.0,235.02,235.0,4.73270346]
[1757946949384,26.0,235.02,234.99,4.73270346]
[1757946949789,26.0,235.02,234.98,4.31565278]
[1757946949971,26.0,235.02,234.99,4.73270346]
[1757946950586,26.0,235.02,235.0,4.25531914]
[1757946950764,26.0,235.02,235.0,8.9880226]
[1757946951170,34.32,235.08,235.01,5.45270346]
[1757946951372,26.0,235.05,235.01,5.45270346]
[1757946951578,26.0,235.04,235.02,4.73270346]
[1757946951978,132.5,235.07,235.03,5.45270346]
[1757946952159,132.5,235.07,235.06,4.73270346]
[1757946952658,132.5,235.07,235.06,8.98693642]
[1757946954074,132.5,235.07,235.04,4.25459496]
[1757946954385,132.5,235.07,235.06,4.73270346]
[1757946954989,132.5,235.13,235.06,5.39270346]
[1757946955288,3.14520563,235.12,235.07,0.66]
[1757946955465,132.5,235.13,235.11,4.73270346]
[1757946955664,132.5,235.13,235.12,4.73270346]
[1757946956291,132.5,235.13,235.12,8.98585078]
[1757946956978,13.59559401,235.12,235.07,4.73270346]
[1757946957168,13.59559401,235.12,235.04,0.66]
[1757946957169,0.68,235.11,235.04,0.66]
[1757946957369,0.03,235.14,235.1,4.73270346]
[1757946957579,0.03,235.14,235.11,0.66]
[1757946957774,0.03,235.14,235.13,4.73270346]
[1757946958184,0.03,235.14,235.13,8.9856699]
[1757946960461,0.03,235.14,235.12,4.25314732]
[1757946960660,0.03,235.14,235.13,4.73270346]
[1757946961098,0.68,235.13,235.1,4.73270346]
[1757946961276,26.68,235.13,235.09,4.73270346]
[1757946961481,26.0,235.13,235.09,4.73270346]
[1757946961787,26.0,235.13,235.11,4.73270346]
[1757946961986,0.03,235.14,235.12,5.41270346]
[1757946962284,0.03,235.14,235.13,4.73270346]
[1757946962590,0.03,235.14,235.13,9.6656699]
[1757946969090,0.1,235.19,235.13,41.98821487]
[1757946969384,0.1,235.19,235.18,4.73270346]
[1757946969787,0.1,235.19,235.18,2.62592198]
[1757946970794,0.1,235.19,235.18,6.87798423]
[1757946971668,1e-08,235.19,235.18,6.87798423]
[1757946971867,1e-08,235.19,235.18,14.66167215]
[1757946972484,1e-08,235.19,235.18,6.87798423]
[1757946973090,1e-08,235.19,235.18,6.19798423]
[1757946973288,1e-08,235.19,235.18,39.81798423]
[1757946973684,0.70000001,235.19,235.17,1.94592198]
[1757946973885,0.7,235.18,235.16,1.94592198]
[1757946974084,0.7,235.17,235.15,1.94592198]
[1757946974292,1e-08,235.19,235.15,1.94592198]
[1757946974483,1e-08,235.19,235.16,1.94592198]
[1757946974877,0.7,235.18,235.16,1.94592198]
[1757946975083,0.7,235.18,235.17,4.25224305]
[1757946975290,1e-08,235.19,235.17,6.19816503]
[1757946975493,0.70000001,235.19,235.17,6.19816503]
[1757946976195,0.7,235.18,235.15,1.94592198]
[1757946976399,0.7,235.17,235.12,1.94592198]
[1757946976696,32.19781733,235.19,235.11,1.94592198]
[1757946976697,0.7,235.16,235.11,1.94592198]
[1757946976879,13.59559401,235.18,235.11,1.94592198]
[1757946976880,0.7,235.15,235.11,1.94592198]
[1757946977290,0.7,235.15,235.12,4.25314732]
[1757946977703,0.7,235.14,235.12,1.94592198]
[1757946977887,0.7,235.13,235.11,4.7343787]
[1757946978079,155.08212503,235.18,235.11,4.7343787]
[1757946978280,0.7,235.16,235.12,4.7343787]
[1757946978491,0.7,235.15,235.11,4.7343787]
[1757946978691,0.7,235.14,235.11,4.7343787]
[1757946979182,150.82997271,235.18,235.11,4.7343787]
[1757946979398,0.7,235.17,235.12,4.25314732]
[1757946979607,26.0,235.15,235.11,4.7343787]
[1757946979788,26.0,235.15,235.13,4.7343787]
[1757946981304,26.0,235.15,235.13,8.98723817]
[1757946981679,132.5,235.18,235.14,4.7343787]
[1757946981896,1e-08,235.19,235.17,4.7343787]
[1757946982078,1e-08,235.19,235.13,14.88527558]
[1757946982283,1e-08,235.19,235.17,4.7343787]
[1757946982481,1e-08,235.19,235.15,0.68]
[1757946982684,1e-08,235.19,235.18,4.7343787]
[1757946982885,1e-08,235.19,235.15,0.68]
[1757946983103,1e-08,235.19,235.17,4.7343787]
[1757946983303,0.7,235.18,235.14,8.98708532]
[1757946983504,0.7,235.17,235.14,4.25270662]
[1757946984596,0.7,235.16,235.14,4.25270662]
[1757946984795,0.7,235.18,235.14,8.98708532]
[1757946984981,26.00000001,235.19,235.16,4.7343787]
[1757946985186,26.00000001,235.19,235.17,4.7343787]
[1757946985404,26.00000001,235.19,235.18,4.7343787]
[1757946985721,1e-08,235.19,235.18,4.7343787]
[1757946985890,1e-08,235.19,235.18,7.6739138]
[1757946986591,1e-08,235.19,235.18,4.93206225]
[1757946986903,1e-08,235.19,235.18,11.92597605]
[1757946989685,1e-08,235.19,235.18,11.24597605]
[1757946990418,0.70000001,235.19,235.11,10.63302271]
[1757946990628,0.70000001,235.19,235.16,6.9939138]
[1757946991206,0.70000001,235.19,235.16,11.24618835]
[1757946992205,0.71,235.18,235.16,6.9939138]
[1757946992520,0.71,235.17,235.14,6.9939138]
[1757946992716,158.5,235.18,235.11,4.25332822]
[1757946992717,158.5,235.18,235.13,6.9939138]
[1757946992915,0.71,235.16,235.13,6.9939138]
[1757946993450,158.5,235.18,235.14,6.9939138]
[1757946993718,158.5,235.18,235.17,6.9939138]
[1757946994122,158.5,235.18,235.15,6.9939138]
[1757946994912,158.5,235.18,235.13,21.8791765]
[1757946995226,158.5,235.18,235.13,22.5991765]
[1757946995419,158.5,235.18,235.14,7.7139138]
[1757946995630,132.5,235.18,235.15,7.7139138]
[1757946996132,132.5,235.18,235.14,6.9939138]
[1757946996426,132.5,235.18,235.14,7.7139138]
[1757946997213,132.5,235.18,235.15,7.7139138]
[1757946997417,132.5,235.18,235.17,4.25224305]
[1757946997619,132.5,235.18,235.16,7.7139138]
[1757946997820,132.5,235.18,235.16,8.01451662]
[1757946998131,132.5,235.18,235.17,3.76211671]
[1757946998505,1e-08,235.19,235.17,3.76211671]
[1757946998908,0.71,235.18,235.16,4.25239991]
[1757946999112,0.71,235.17,235.16,4.25239991]
[1757946999318,3.04211672,235.19,235.14,4.25278557]
[1757946999516,3.04211672,235.19,235.14,4.97278557]
[1757946999718,1e-08,235.19,235.14,8.01490228]
[1757947000320,1e-08,235.19,235.14,18.64686621]
[1757947000525,3.75211671,235.18,235.12,4.25299676]
[1757947000735,3.04211671,235.17,235.12,4.25299676]
[1757947000939,0.71,235.16,235.12,4.25299676]
[1757947001428,3.04211671,235.18,235.11,4.25332822]
[1757947001620,3.04211671,235.18,235.12,3.04211671]
[1757947001621,0.71,235.18,235.12,3.04211671]
[1757947001816,0.71,235.18,235.11,15.60664879]
[1757947002022,0.71,235.18,235.12,3.04211671]
[1757947002733,3.75211671,235.18,235.11,18.6487655]
[1757947003226,3.75211671,235.18,235.12,0.06]
[1757947003420,135.57211672,235.19,235.14,4.25278557]
[1757947003631,132.53000001,235.19,235.15,0.72]
[1757947003829,132.53000001,235.19,235.15,3.76211671]
[1757947004131,132.53000001,235.19,235.15,0.72]
[1757947004323,132.53000001,235.19,235.15,3.04211671]
[1757947004522,132.53000001,235.19,235.16,3.76211671]
[1757947005033,0.03000001,235.19,235.17,0.72]
[1757947005236,0.03000001,235.19,235.18,3.76211671]
[1757947005530,0.03000001,235.19,235.18,8.01417896]
[1757947006537,0.03000001,235.19,235.16,3.04211671]
[1757947006715,0.03000001,235.19,235.15,3.04211671]
[1757947006909,0.03000001,235.19,235.15,3.76211671]
[1757947007108,0.03000001,235.19,235.14,10.63196393]
[1757947007309,0.74000001,235.19,235.14,13.67408064]
[1757947007532,0.71,235.18,235.14,14.8847495]
[1757947007917,29.07211672,235.19,235.14,14.8847495]
[1757947008129,3.78211672,235.19,235.14,14.8847495]
[1757947009136,3.78211672,235.19,235.14,4.25278557]
[1757947009329,3.75211671,235.18,235.12,0.06]
[1757947009513,3.04211671,235.17,235.12,4.31303071]
[1757947009711,0.71,235.16,235.12,4.31303071]
[1757947012827,26.71,235.16,235.12,4.31303071]
[1757947013345,26.71,235.16,235.12,0.06]
[1757947013346,3.04211671,235.13,235.12,0.06]
[1757947013517,42.63771072,235.13,235.12,0.06]
[1757947013716,46.49783353,235.13,235.12,0.06]
[1757947014214,43.34771072,235.13,235.12,0.06]
[1757947015016,50.74913458,235.13,235.12,0.06]
[1757947015637,46.49616814,235.13,235.12,0.06]
[1757947016255,50.74913458,235.13,235.12,0.06]
[1757947017132,46.49616814,235.13,235.12,0.06]
[1757947017446,50.74913458,235.13,235.12,0.06]
[1757947018239,47.60067716,235.13,235.12,0.06]
[1757947018423,43.34771072,235.13,235.12,0.06]
[1757947018745,46.49362744,235.13,235.12,0.06]
[1757947019224,43.34771072,235.13,235.12,0.06]
[1757947019849,24.74622611,235.13,235.12,0.06]
[1757947021038,50.74622611,235.13,235.12,0.06]
[1757947021227,24.74622611,235.13,235.12,0.06]
[1757947021434,24.74425282,235.13,235.12,0.06]
[1757947021836,50.74425282,235.13,235.12,0.06]
[1757947022031,58.34226356,235.13,235.12,0.06]
[1757947022440,58.34173573,235.13,235.12,0.06]
[1757947023124,54.07876929,235.13,235.12,0.06]
[1757947023724,50.23771072,235.13,235.12,0.06]
[1757947024226,50.93771072,235.13,235.12,0.06]
[1757947025028,55.19067716,235.13,235.12,0.06]
[1757947025341,58.32853645,235.13,235.12,0.06]
[1757947025723,39.59559401,235.1,235.09,0.06]
[1757947025920,26.0,235.02,235.01,0.06]
[1757947026130,76.23771072,235.02,235.01,0.06]
[1757947026332,76.93771072,235.02,235.01,0.06]
[1757947026532,76.23771072,235.02,235.01,0.06]
[1757947027042,80.49266774,235.02,235.01,0.06]
[1757947027434,76.23771072,235.02,235.01,0.06]
[1757947028557,80.49266774,235.02,235.01,0.06]
[1757947029839,76.23771072,235.02,235.01,0.06]
[1757947030345,42.63771072,235.02,235.01,0.06]
[1757947030652,76.23771072,235.02,235.01,0.06]
[1757947031948,42.63771072,235.02,235.01,0.06]
[1757947032254,29.04211671,235.04,235.01,0.77]
[1757947032551,26.0,235.03,235.02,0.71]
[1757947032758,26.0,235.03,235.01,4.31513807]
[1757947033348,26.0,235.03,235.02,0.71]
[1757947034348,26.0,235.03,235.01,4.31513807]
[1757947034548,29.04211671,235.03,235.02,0.71]
[1757947035060,26.0,235.03,235.02,0.71]
[1757947035357,26.0,235.03,235.02,4.96495702]
[1757947035651,3.04211671,235.04,235.02,4.96495702]
[1757947035652,36.64211671,235.07,235.02,4.96495702]
[1757947035853,26.0,235.04,235.03,0.71]
[1757947036337,3.04211671,235.09,235.03,0.71]
[1757947036530,3.04211671,235.11,235.04,3.04211671]
[1757947036730,3.04211671,235.11,235.05,0.71]
[1757947036930,29.04211671,235.12,235.05,3.75211671]
[1757947037150,29.04211671,235.12,235.06,3.75211671]
[1757947037151,26.0,235.12,235.06,3.75211671]
[1757947037457,13.62559402,235.19,235.09,3.04211671]
[1757947037754,3.04211671,235.16,235.1,0.71]
[1757947037931,0.03000001,235.19,235.1,0.71]
[1757947038134,3.04211671,235.16,235.1,0.71]
[1757947038342,3.04211671,235.17,235.1,3.75211671]
[1757947038560,3.04211671,235.17,235.11,0.71]
[1757947039053,3.04211671,235.18,235.11,3.75211671]
[1757947039240,3.07211672,235.19,235.12,3.75211671]
[1757947039556,0.03000001,235.19,235.14,3.04211671]
[1757947039751,0.03000001,235.19,235.15,0.71]
[1757947040059,0.03000001,235.19,235.15,3.75211671]
[1757947040558,0.03000001,235.19,235.16,0.71]
[1757947041255,3.07211672,235.19,235.16,0.71]
[1757947041562,3.07211672,235.19,235.16,4.96231662]
[1757947041852,0.03000001,235.19,235.17,0.71]
[1757947042034,3.07211672,235.19,235.17,0.71]
[1757947042448,3.04211671,235.18,235.16,4.25231662]
[1757947042646,3.07211672,235.19,235.17,0.71]
[1757947042841,0.03000001,235.19,235.18,0.71]
[1757947043259,3.07211672,235.19,235.16,4.25231662]
[1757947043762,0.03000001,235.19,235.17,0.71]
[1757947044131,3.07211672,235.19,235.16,4.25231662]
[1757947044333,3.04211671,235.17,235.13,4.25296644]
[1757947044560,0.73000001,235.19,235.13,4.25296644]
[1757947044561,3.04211671,235.15,235.13,4.25296644]
[1757947044759,0.73000001,235.19,235.14,0.71]
[1757947044760,3.04211671,235.18,235.14,0.71]
[1757947044954,0.03000001,235.19,235.15,0.71]
[1757947045335,26.03000001,235.19,235.16,0.71]
[1757947045657,29.07211672,235.19,235.17,0.71]
[1757947046333,3.04211671,235.18,235.14,0.71]
[1757947046554,3.04211671,235.16,235.13,4.25296644]
[1757947047053,3.04211671,235.16,235.13,4.96296644]
[1757947047246,3.04211671,235.17,235.14,0.71]
[1757947047764,26.03000001,235.19,235.13,4.25296644]
[1757947047765,1.94787548,235.16,235.13,4.25296644]
[1757947047936,1.94787548,235.16,235.13,4.96296644]
[1757947048130,1.94787548,235.16,235.13,4.25296644]
[1757947048450,1.94787548,235.16,235.13,4.96296644]
[1757947048650,1.94787548,235.17,235.13,4.96296644]
[1757947048852,1.94787548,235.17,235.13,4.25296644]
[1757947049039,1.94787548,235.17,235.13,4.96296644]
[1757947049441,1.94787548,235.17,235.13,15.59538255]
[1757947050467,1.94787548,235.17,235.14,0.71]
[1757947050639,27.97787549,235.19,235.15,0.71]
[1757947051148,26.03000001,235.19,235.15,0.71]
[1757947051853,26.03000001,235.19,235.16,0.69]
[1757947052054,26.03000001,235.19,235.18,4.25206225]
[1757947052262,26.03000001,235.19,235.18,4.94206225]
[1757947053159,26.03000001,235.19,235.17,4.25224305]
[1757947053336,26.03000001,235.19,235.17,4.94224305]
[1757947054254,26.03000001,235.19,235.18,0.69]
[1757947054255,0.03000001,235.19,235.18,0.69]
[1757947054455,0.03000001,235.19,235.18,2.63787548]
[1757947054763,0.03000001,235.19,235.18,0.69]
[1757947055163,0.03000001,235.19,235.18,6.88993773]
[1757947058066,1e-08,235.21,235.18,15.57221787]
[1757947058263,1e-08,235.21,235.18,14.88221787]
[1757947058572,1e-08,235.21,235.19,0.69]
[1757947059863,1e-08,235.21,235.2,4.25170068]
[1757947060543,1e-08,235.21,235.2,4.94170068]
[1757947061471,1e-08,235.21,235.2,6.88957616]
[1757947067864,1e-08,235.21,235.2,40.42957616]
[1757947068390,1e-08,235.21,235.2,6.88957616]
[1757947068594,1e-08,235.21,235.2,40.42957616]
[1757947069183,1e-08,235.21,235.2,6.19957616]
[1757947069389,1e-08,235.21,235.2,4.25170068]
[1757947069888,1e-08,235.21,235.18,11.32015562]
[1757947069889,0.72000001,235.21,235.18,14.88221787]
[1757947070314,1e-08,235.21,235.18,14.88221787]
[1757947070971,0.72,235.2,235.16,4.25225228]
[1757947071174,0.72,235.19,235.16,4.25225228]
[1757947071475,27.94787548,235.2,235.16,4.25225228]
[1757947071682,0.72,235.19,235.16,4.25225228]
[1757947072088,0.72,235.19,235.14,4.25278557]
[1757947072583,0.72,235.19,235.14,4.94278557]
[1757947072767,27.94787548,235.2,235.14,15.5747495]
[1757947074576,2.65787548,235.19,235.14,4.25278557]
[1757947074777,0.71,235.18,235.14,4.25278557]
[1757947074982,2.65787548,235.17,235.12,16.89758931]
[1757947075178,2.65787548,235.17,235.12,17.61758931]
[1757947075498,1.94787548,235.17,235.12,17.61758931]
[1757947075698,1.94787548,235.18,235.12,17.61758931]
[1757947076012,1.94787548,235.18,235.12,16.89758931]
[1757947076498,1.94787548,235.18,235.12,27.53045763]
[1757947077477,1.94787548,235.18,235.12,28.25045763]
[1757947078377,1.94787548,235.14,235.12,27.53045763]
[1757947078580,1.94787548,235.14,235.09,0.06]
[1757947078581,2.65787548,235.13,235.1,4.25350914]
[1757947078796,0.71,235.13,235.1,17.18632078]
[1757947078973,1.94787548,235.11,235.1,4.25350914]
[1757947081005,2.65787548,235.11,235.1,4.25350914]
[1757947081301,2.65787548,235.11,235.09,0.06]
[1757947081478,0.71,235.1,235.09,4.31369007]
[1757947081678,0.69,235.14,235.09,4.31369007]
[1757947081913,1.94787548,235.1,235.09,4.31369007]
[1757947083303,33.54,235.17,235.09,4.31369007]
[1757947083304,27.94787548,235.14,235.09,15.60791526]
[1757947083608,14.31559401,235.22,235.11,1.94787548]
[1757947083790,3.14034913,235.21,235.12,1.94787548]
[1757947084100,5.08822461,235.21,235.14,1.94787548]
[1757947084299,1e-08,235.21,235.16,1.94787548]
[1757947084495,1e-08,235.21,235.16,2.60787548]
[1757947085083,1e-08,235.21,235.17,14.88285069]
[1757947085490,1e-08,235.21,235.18,0.66]
[1757947086095,1e-08,235.21,235.17,14.88285069]
[1757947086495,1e-08,235.21,235.18,2.60787548]
[1757947086685,1e-08,235.21,235.18,0.66]
[1757947086886,1e-08,235.21,235.17,14.88285069]
[1757947087206,0.69,235.2,235.14,33.54]
[1757947087407,1.94787548,235.18,235.13,49.08507538]
[1757947087591,2.63787548,235.18,235.13,49.08507538]
[1757947087791,2.63787548,235.18,235.13,48.42507538]
[1757947088009,0.69,235.18,235.13,48.42507538]